[Event "Titled Tuesday Blitz November 15 Early 2022"]
[White "Aponte Ramos, Argimiro"]
[Black "Buscar, Michael"]
[WhiteFideId "3900568"]
[BlackFideId "2603616"]
[WhiteElo "2216"]
[BlackElo "2010"]
[Result "1/2-1/2"]
[Round "10"]
[TimeControl "180+1"]
[Date "2022.11.16"]
[WhiteClock "0:00:09"]
[BlackClock "0:01:04"]

1. e4 {[%clk 0:03:00]}  c5 {[%clk 0:02:59]} 2. Nf3 {[%clk 0:03:00]}  Nc6 {[%clk 0:02:59]} 3. Bb5 {[%clk 0:02:59]}  Nf6 {[%clk 0:02:59]} 4. Bxc6 {[%clk 0:02:59]}  bxc6 {[%clk 0:02:59]} 5. d3 {[%clk 0:03:00]}  g6 {[%clk 0:02:59]} 6. O-O {[%clk 0:02:59]}  Bg7 {[%clk 0:02:59]} 7. Re1 {[%clk 0:02:57]}  O-O {[%clk 0:02:59]} 8. e5 {[%clk 0:02:53]}  Nd5 {[%clk 0:02:57]} 9. Nbd2 {[%clk 0:02:52]}  Nc7 {[%clk 0:02:56]} 10. Nc4 {[%clk 0:02:50]}  Ne6 {[%clk 0:02:55]} 11. Ng5 {[%clk 0:02:36]}  d5 {[%clk 0:02:48]} 12. exd6 {[%clk 0:02:22]}  exd6 {[%clk 0:02:47]} 13. Nf3 {[%clk 0:02:13]}  Nd4 {[%clk 0:02:32]} 14. Nxd4 {[%clk 0:02:07]}  cxd4 {[%clk 0:02:27]} 15. Bf4 {[%clk 0:02:00]}  d5 {[%clk 0:02:19]} 16. Nd2 {[%clk 0:01:59]}  Be6 {[%clk 0:02:10]} 17. Be5 {[%clk 0:01:34]}  c5 {[%clk 0:02:01]} 18. Bxg7 {[%clk 0:01:27]}  Kxg7 {[%clk 0:02:02]} 19. b3 {[%clk 0:01:19]}  Rc8 {[%clk 0:01:54]} 20. Nf3 {[%clk 0:01:19]}  Qf6 {[%clk 0:01:54]} 21. Qd2 {[%clk 0:01:17]}  Rfd8 {[%clk 0:01:54]} 22. Qg5 {[%clk 0:01:16]}  c4 {[%clk 0:01:52]} 23. Qxf6+ {[%clk 0:01:15]}  Kxf6 {[%clk 0:01:51]} 24. Rac1 {[%clk 0:01:12]}  cxd3 {[%clk 0:01:44]} 25. cxd3 {[%clk 0:01:09]}  Rc3 {[%clk 0:01:45]} 26. Nxd4 {[%clk 0:01:02]}  Rxd3 {[%clk 0:01:43]} 27. Nxe6 {[%clk 0:00:52]}  fxe6 {[%clk 0:01:43]} 28. Rc6 {[%clk 0:00:52]}  Re8 {[%clk 0:01:43]} 29. Ra6 {[%clk 0:00:49]}  Re7 {[%clk 0:01:42]} 30. f4 {[%clk 0:00:42]}  Kf5 {[%clk 0:01:33]} 31. Re5+ {[%clk 0:00:23]}  Kxf4 {[%clk 0:01:28]} 32. Rexe6 {[%clk 0:00:22]}  Rd1+ {[%clk 0:01:27]} 33. Kf2 {[%clk 0:00:22]}  Rd2+ {[%clk 0:01:28]} 34. Kf1 {[%clk 0:00:20]}  Rxe6 {[%clk 0:01:26]} 35. Rxe6 {[%clk 0:00:19]}  Rxa2 {[%clk 0:01:26]} 36. Rd6 {[%clk 0:00:17]}  d4 {[%clk 0:01:22]} 37. Rxd4+ {[%clk 0:00:17]}  Ke3 {[%clk 0:01:23]} 38. Rd1 {[%clk 0:00:17]}  Rb2 {[%clk 0:01:18]} 39. Re1+ {[%clk 0:00:17]}  Kd3 {[%clk 0:01:15]} 40. Re7 {[%clk 0:00:16]}  a5 {[%clk 0:01:13]} 41. Rxh7 {[%clk 0:00:15]}  Rxb3 {[%clk 0:01:14]} 42. Ra7 {[%clk 0:00:14]}  Rb5 {[%clk 0:01:11]} 43. Kf2 {[%clk 0:00:13]}  g5 {[%clk 0:01:10]} 44. Kg3 {[%clk 0:00:13]}  Kc3 {[%clk 0:01:10]} 45. Kg4 {[%clk 0:00:12]}  Kb3 {[%clk 0:01:10]} 46. g3 {[%clk 0:00:12]}  a4 {[%clk 0:01:09]} 47. h4 {[%clk 0:00:12]}  gxh4 {[%clk 0:01:09]} 48. gxh4 {[%clk 0:00:13]}  a3 {[%clk 0:01:10]} 49. h5 {[%clk 0:00:12]}  Rb4+ {[%clk 0:01:10]} 50. Kg5 {[%clk 0:00:12]}  Ra4 {[%clk 0:01:10]} 51. Rb7+ {[%clk 0:00:12]}  Kc4 {[%clk 0:01:07]} 52. Rb1 {[%clk 0:00:11]}  a2 {[%clk 0:01:07]} 53. Ra1 {[%clk 0:00:11]}  Kb3 {[%clk 0:01:06]} 54. h6 {[%clk 0:00:10]}  Ra5+ {[%clk 0:01:04]} 55. Kg6 {[%clk 0:00:10]}  Ra6+ {[%clk 0:01:04]} 56. Kg7 {[%clk 0:00:09]}  Ra7+ {[%clk 0:01:05]} 57. Kg6 {[%clk 0:00:09]}  Ra6+ {[%clk 0:01:03]} 58. Kg7 {[%clk 0:00:09]}  Kb2 {[%clk 0:01:04]} 59. Rxa2+ {[%clk 0:00:08]}  Kxa2 {[%clk 0:01:04]} 60. h7 {[%clk 0:00:08]}  Ra7+ {[%clk 0:01:03]} 61. Kg8 {[%clk 0:00:09]}  Ra8+ {[%clk 0:01:03]} 62. Kg7 {[%clk 0:00:09]}  Ra7+ {[%clk 0:01:04]} 63. Kg8 {[%clk 0:00:09]}  Rxh7 {[%clk 0:01:04]} 64. Kxh7 {[%clk 0:00:09]} 1/2-1/2


[Site "https://www.chess.com"]

[Event "Titled Tuesday Blitz November 15 Early 2022"]
[White "Aradhya, Garg"]
[Black "Svane, Rasmus"]
[WhiteFideId "25006746"]
[BlackFideId "4657101"]
[WhiteElo "2223"]
[BlackElo "2674"]
[Result "1-0"]
[Round "10"]
[TimeControl "180+1"]
[Date "2022.11.15"]
[WhiteClock "0:00:30"]
[BlackClock "0:00:07"]

1. d4 {[%clk 0:03:00]}  Nf6 {[%clk 0:02:59]} 2. c4 {[%clk 0:03:01]}  e6 {[%clk 0:02:59]} 3. Nc3 {[%clk 0:03:01]}  Bb4 {[%clk 0:02:59]} 4. e3 {[%clk 0:03:02]}  O-O {[%clk 0:02:59]} 5. Bd2 {[%clk 0:03:02]}  Re8 {[%clk 0:02:56]} 6. Nf3 {[%clk 0:03:00]}  d5 {[%clk 0:02:56]} 7. Rc1 {[%clk 0:03:00]}  Nbd7 {[%clk 0:02:56]} 8. Qb3 {[%clk 0:02:55]}  Bxc3 {[%clk 0:02:42]} 9. Bxc3 {[%clk 0:02:54]}  b6 {[%clk 0:02:42]} 10. cxd5 {[%clk 0:02:41]}  Nxd5 {[%clk 0:02:42]} 11. Be2 {[%clk 0:02:21]}  c5 {[%clk 0:02:39]} 12. Bd2 {[%clk 0:02:10]}  cxd4 {[%clk 0:02:23]} 13. exd4 {[%clk 0:02:07]}  Bb7 {[%clk 0:02:22]} 14. O-O {[%clk 0:02:06]}  h6 {[%clk 0:02:16]} 15. Bd3 {[%clk 0:02:06]}  Qb8 {[%clk 0:01:48]} 16. Rfe1 {[%clk 0:01:56]}  Rd8 {[%clk 0:01:45]} 17. Ne5 {[%clk 0:01:54]}  Nxe5 {[%clk 0:01:22]} 18. dxe5 {[%clk 0:01:54]}  Ne7 {[%clk 0:01:23]} 19. Bb4 {[%clk 0:01:51]}  Bd5 {[%clk 0:01:22]} 20. Qa3 {[%clk 0:01:49]}  Ng6 {[%clk 0:01:17]} 21. Bd6 {[%clk 0:01:49]}  Qb7 {[%clk 0:01:00]} 22. Rc7 {[%clk 0:01:47]}  Qb8 {[%clk 0:00:59]} 23. Bxg6 {[%clk 0:01:41]}  fxg6 {[%clk 0:00:53]} 24. Qd3 {[%clk 0:01:21]}  Kh7 {[%clk 0:00:47]} 25. h4 {[%clk 0:01:14]}  h5 {[%clk 0:00:45]} 26. Re3 {[%clk 0:01:10]}  Rf8 {[%clk 0:00:41]} 27. Rg3 {[%clk 0:01:01]}  Rf5 {[%clk 0:00:41]} 28. Rxg7+ {[%clk 0:01:00]}  Kxg7 {[%clk 0:00:41]} 29. Bxb8 {[%clk 0:01:00]}  Rxb8 {[%clk 0:00:42]} 30. Qa3 {[%clk 0:00:57]}  Rb7 {[%clk 0:00:42]} 31. Rg5 {[%clk 0:00:54]}  Rxg5 {[%clk 0:00:35]} 32. hxg5 {[%clk 0:00:55]}  Kf7 {[%clk 0:00:36]} 33. b3 {[%clk 0:00:51]}  a5 {[%clk 0:00:35]} 34. Qd6 {[%clk 0:00:50]}  Kg7 {[%clk 0:00:35]} 35. f3 {[%clk 0:00:46]}  Kf7 {[%clk 0:00:30]} 36. Kf2 {[%clk 0:00:46]}  Kg7 {[%clk 0:00:31]} 37. Ke3 {[%clk 0:00:46]}  Kf7 {[%clk 0:00:30]} 38. Kd4 {[%clk 0:00:46]}  Kg7 {[%clk 0:00:31]} 39. f4 {[%clk 0:00:46]}  Kf7 {[%clk 0:00:30]} 40. g3 {[%clk 0:00:47]}  Ke8 {[%clk 0:00:28]} 41. Ke3 {[%clk 0:00:45]}  Kf7 {[%clk 0:00:28]} 42. Kd2 {[%clk 0:00:42]}  Kg7 {[%clk 0:00:27]} 43. Qd8 {[%clk 0:00:40]}  Kh7 {[%clk 0:00:24]} 44. Ke3 {[%clk 0:00:39]}  Kg7 {[%clk 0:00:24]} 45. Kd4 {[%clk 0:00:39]}  Kh7 {[%clk 0:00:25]} 46. Kc3 {[%clk 0:00:38]}  Kg7 {[%clk 0:00:25]} 47. a3 {[%clk 0:00:38]}  Kh7 {[%clk 0:00:25]} 48. b4 {[%clk 0:00:39]}  axb4+ {[%clk 0:00:24]} 49. Kxb4 {[%clk 0:00:39]}  b5 {[%clk 0:00:21]} 50. Kc5 {[%clk 0:00:39]}  Kg7 {[%clk 0:00:20]} 51. Kd6 {[%clk 0:00:39]}  Ra7 {[%clk 0:00:21]} 52. Qb6 {[%clk 0:00:38]}  Rb7 {[%clk 0:00:20]} 53. Qa6 {[%clk 0:00:36]}  Kh7 {[%clk 0:00:21]} 54. Kc5 {[%clk 0:00:36]}  Kg7 {[%clk 0:00:21]} 55. Kb4 {[%clk 0:00:36]}  Kh7 {[%clk 0:00:20]} 56. Qa8 {[%clk 0:00:36]}  Kg7 {[%clk 0:00:20]} 57. Qd8 {[%clk 0:00:35]}  Kh7 {[%clk 0:00:20]} 58. Qf6 {[%clk 0:00:34]}  Bc4 {[%clk 0:00:17]} 59. a4 {[%clk 0:00:34]}  Bd5 {[%clk 0:00:13]} 60. axb5 {[%clk 0:00:32]}  Rc7 {[%clk 0:00:11]} 61. b6 {[%clk 0:00:31]}  Rc4+ {[%clk 0:00:08]} 62. Kb5 {[%clk 0:00:31]}  Rc3 {[%clk 0:00:07]} 63. Qf7+ {[%clk 0:00:31]}  Kh8 {[%clk 0:00:07]} 64. Qxg6 {[%clk 0:00:31]}  Rb3+ {[%clk 0:00:06]} 65. Kc5 {[%clk 0:00:31]}  Rc3+ {[%clk 0:00:06]} 66. Kd6 {[%clk 0:00:31]}  Rc6+ {[%clk 0:00:06]} 67. Ke7 {[%clk 0:00:31]}  Rxb6 {[%clk 0:00:06]} 68. Kf6 {[%clk 0:00:28]}  Rb7 {[%clk 0:00:06]} 69. Qe8+ {[%clk 0:00:29]}  Kh7 {[%clk 0:00:05]} 70. g6+ {[%clk 0:00:29]}  Kh6 {[%clk 0:00:06]} 71. Qh8+ {[%clk 0:00:30]}  Rh7 {[%clk 0:00:07]} 72. Qxh7# {[%clk 0:00:30]} 1-0


[Site "https://www.chess.com"]

[Event "Titled Tuesday Blitz November 15 Early 2022"]
[White "Atakhan, Abtin"]
[Black "Santos Ruiz, Miguel"]
[WhiteFideId "22502203"]
[BlackFideId "22291482"]
[WhiteElo "2733"]
[BlackElo "2830"]
[Result "0-1"]
[Round "10"]
[TimeControl "180+1"]
[Date "2022.11.16"]
[WhiteClock "0:00:06"]
[BlackClock "0:00:57"]

1. Nf3 {[%clk 0:03:00]}  f5 {[%clk 0:02:58]} 2. c4 {[%clk 0:02:57]}  Nf6 {[%clk 0:02:58]} 3. g3 {[%clk 0:02:58]}  b6 {[%clk 0:02:58]} 4. Bg2 {[%clk 0:02:58]}  Bb7 {[%clk 0:02:59]} 5. O-O {[%clk 0:02:58]}  e6 {[%clk 0:02:59]} 6. Nc3 {[%clk 0:02:56]}  Bb4 {[%clk 0:02:58]} 7. d3 {[%clk 0:02:56]}  O-O {[%clk 0:02:57]} 8. Bd2 {[%clk 0:02:51]}  a5 {[%clk 0:02:56]} 9. a3 {[%clk 0:02:50]}  Be7 {[%clk 0:02:54]} 10. Nb5 {[%clk 0:02:50]}  Na6 {[%clk 0:02:49]} 11. Qc2 {[%clk 0:02:47]}  c5 {[%clk 0:02:40]} 12. Bc3 {[%clk 0:02:35]}  Nc7 {[%clk 0:02:38]} 13. Nxc7 {[%clk 0:02:33]}  Qxc7 {[%clk 0:02:39]} 14. Rab1 {[%clk 0:02:18]}  a4 {[%clk 0:02:39]} 15. b3 {[%clk 0:02:15]}  axb3 {[%clk 0:02:38]} 16. Rxb3 {[%clk 0:02:13]}  Bc6 {[%clk 0:02:37]} 17. Qb2 {[%clk 0:02:10]}  Ra6 {[%clk 0:02:37]} 18. Rb1 {[%clk 0:02:09]}  Bd8 {[%clk 0:02:36]} 19. Qd2 {[%clk 0:02:01]}  Qa7 {[%clk 0:02:22]} 20. Qc1 {[%clk 0:01:34]}  Qa8 {[%clk 0:02:22]} 21. Ne1 {[%clk 0:01:31]}  d5 {[%clk 0:02:22]} 22. Qf4 {[%clk 0:01:21]}  d4 {[%clk 0:02:17]} 23. Bd2 {[%clk 0:01:16]}  Bxg2 {[%clk 0:02:17]} 24. Nxg2 {[%clk 0:01:16]}  Qc6 {[%clk 0:02:14]} 25. Qf3 {[%clk 0:01:10]}  Qxf3 {[%clk 0:02:09]} 26. exf3 {[%clk 0:01:11]}  Bc7 {[%clk 0:02:10]} 27. f4 {[%clk 0:01:07]}  Rfa8 {[%clk 0:02:09]} 28. Bc1 {[%clk 0:01:04]}  Nd7 {[%clk 0:01:53]} 29. Bb2 {[%clk 0:00:57]}  Kf7 {[%clk 0:01:51]} 30. Re1 {[%clk 0:00:53]}  Re8 {[%clk 0:01:50]} 31. Nh4 {[%clk 0:00:51]}  g6 {[%clk 0:01:45]} 32. Nf3 {[%clk 0:00:44]}  Kf6 {[%clk 0:01:44]} 33. Bc1 {[%clk 0:00:38]}  Raa8 {[%clk 0:01:41]} 34. Rb2 {[%clk 0:00:27]}  Rxa3 {[%clk 0:01:21]} 35. Ng5 {[%clk 0:00:15]}  h6 {[%clk 0:01:17]} 36. Rxe6+ {[%clk 0:00:12]}  Rxe6 {[%clk 0:01:11]} 37. Nxe6 {[%clk 0:00:13]}  Rxd3 {[%clk 0:01:08]} 38. Nxc7 {[%clk 0:00:12]}  Rd1+ {[%clk 0:01:08]} 39. Kg2 {[%clk 0:00:13]}  Rxc1 {[%clk 0:01:09]} 40. Nd5+ {[%clk 0:00:13]}  Kf7 {[%clk 0:01:07]} 41. Nxb6 {[%clk 0:00:07]}  Nxb6 {[%clk 0:01:08]} 42. Rxb6 {[%clk 0:00:08]}  Rxc4 {[%clk 0:01:09]} 43. Kf3 {[%clk 0:00:06]}  Rc3+ {[%clk 0:01:02]} 44. Ke2 {[%clk 0:00:06]}  c4 {[%clk 0:01:02]} 45. Rd6 {[%clk 0:00:07]}  Rc2+ {[%clk 0:01:02]} 46. Kf3 {[%clk 0:00:07]}  d3 {[%clk 0:01:01]} 47. h4 {[%clk 0:00:07]}  Rc1 {[%clk 0:00:58]} 48. h5 {[%clk 0:00:05]}  gxh5 {[%clk 0:00:57]} 49. Ke3 {[%clk 0:00:06]}  Rc2 {[%clk 0:00:57]} 0-1


[Site "https://www.chess.com"]

[Event "Titled Tuesday Blitz November 15 Early 2022"]
[White "Avila Rodriguez, Joshua Ad"]
[Black "Adithya A Chullikkad"]
[WhiteFideId "5126444"]
[BlackFideId "45078734"]
[WhiteElo "2125"]
[BlackElo "2106"]
[Result "0-1"]
[Round "10"]
[TimeControl "180+1"]
[Date "2022.11.16"]
[WhiteClock "0:01:18"]
[BlackClock "0:01:38"]

1. e4 {[%clk 0:03:00]}  c6 {[%clk 0:02:50]} 2. d4 {[%clk 0:03:00]}  d5 {[%clk 0:02:51]} 3. e5 {[%clk 0:03:01]}  g6 {[%clk 0:02:49]} 4. Bd3 {[%clk 0:02:58]}  Bg7 {[%clk 0:02:49]} 5. Nf3 {[%clk 0:02:58]}  Bf5 {[%clk 0:02:49]} 6. O-O {[%clk 0:02:58]}  Bxd3 {[%clk 0:02:49]} 7. Qxd3 {[%clk 0:02:58]}  e6 {[%clk 0:02:50]} 8. Nbd2 {[%clk 0:02:57]}  Ne7 {[%clk 0:02:50]} 9. c4 {[%clk 0:02:58]}  Nd7 {[%clk 0:02:49]} 10. b3 {[%clk 0:02:57]}  dxc4 {[%clk 0:02:45]} 11. Nxc4 {[%clk 0:02:57]}  b5 {[%clk 0:02:45]} 12. Nd6+ {[%clk 0:02:57]}  Kf8 {[%clk 0:02:44]} 13. a4 {[%clk 0:02:55]}  a6 {[%clk 0:02:40]} 14. Ba3 {[%clk 0:02:53]}  Kg8 {[%clk 0:02:36]} 15. Rac1 {[%clk 0:02:51]}  Nb6 {[%clk 0:02:33]} 16. Nd2 {[%clk 0:02:44]}  Nbd5 {[%clk 0:02:32]} 17. Bc5 {[%clk 0:02:37]}  Nc8 {[%clk 0:02:13]} 18. N2e4 {[%clk 0:02:32]}  Bf8 {[%clk 0:02:12]} 19. Qf3 {[%clk 0:02:19]}  Nxd6 {[%clk 0:02:11]} 20. Bxd6 {[%clk 0:02:17]}  Bxd6 {[%clk 0:02:11]} 21. Nxd6 {[%clk 0:02:17]}  Qd7 {[%clk 0:02:07]} 22. Rxc6 {[%clk 0:02:17]}  Kg7 {[%clk 0:02:04]} 23. Rfc1 {[%clk 0:02:16]}  Ra7 {[%clk 0:02:03]} 24. axb5 {[%clk 0:02:14]}  axb5 {[%clk 0:02:02]} 25. Nxb5 {[%clk 0:02:15]}  Qxc6 {[%clk 0:01:58]} 26. Re1 {[%clk 0:01:39]}  Qxb5 {[%clk 0:01:54]} 27. h4 {[%clk 0:01:40]}  h5 {[%clk 0:01:53]} 28. Re4 {[%clk 0:01:39]}  Ra1+ {[%clk 0:01:50]} 29. Kh2 {[%clk 0:01:40]}  Rb1 {[%clk 0:01:47]} 30. g4 {[%clk 0:01:40]}  Qf1 {[%clk 0:01:45]} 31. g5 {[%clk 0:01:18]}  Qg1+ {[%clk 0:01:40]} 32. Kh3 {[%clk 0:01:18]}  Rb8 {[%clk 0:01:38]} 0-1


[Site "https://www.chess.com"]

[Event "Titled Tuesday Blitz November 15 Early 2022"]
[White "Bacrot, Etienne"]
[Black "Deac, Bogdan-Daniel"]
[WhiteFideId "605506"]
[BlackFideId "1226380"]
[WhiteElo "2666"]
[BlackElo "2648"]
[Result "0-1"]
[Round "10"]
[TimeControl "180+1"]
[Date "2022.11.15"]
[WhiteClock "0:00:02"]
[BlackClock "0:00:13"]

1. e4 {[%clk 0:03:00]}  c6 {[%clk 0:02:59]} 2. Nf3 {[%clk 0:02:58]}  d5 {[%clk 0:03:00]} 3. Nc3 {[%clk 0:02:57]}  Bg4 {[%clk 0:02:57]} 4. h3 {[%clk 0:02:57]}  Bxf3 {[%clk 0:02:58]} 5. Qxf3 {[%clk 0:02:58]}  e6 {[%clk 0:02:58]} 6. g3 {[%clk 0:02:56]}  Bc5 {[%clk 0:02:47]} 7. Bg2 {[%clk 0:02:56]}  Ne7 {[%clk 0:02:47]} 8. O-O {[%clk 0:02:56]}  O-O {[%clk 0:02:47]} 9. Rd1 {[%clk 0:02:56]}  d4 {[%clk 0:02:25]} 10. Ne2 {[%clk 0:02:54]}  Nd7 {[%clk 0:02:25]} 11. d3 {[%clk 0:02:34]}  Bb6 {[%clk 0:02:02]} 12. Rf1 {[%clk 0:02:03]}  c5 {[%clk 0:01:56]} 13. h4 {[%clk 0:01:46]}  Qc7 {[%clk 0:01:43]} 14. Bf4 {[%clk 0:01:38]}  Ne5 {[%clk 0:01:25]} 15. Qh5 {[%clk 0:01:34]}  N7g6 {[%clk 0:01:22]} 16. Bd2 {[%clk 0:01:31]}  c4 {[%clk 0:01:14]} 17. Nf4 {[%clk 0:01:10]}  cxd3 {[%clk 0:01:06]} 18. cxd3 {[%clk 0:01:10]}  Qc2 {[%clk 0:01:02]} 19. Nxg6 {[%clk 0:01:02]}  Nxg6 {[%clk 0:00:51]} 20. Bb4 {[%clk 0:00:36]}  Qxd3 {[%clk 0:00:33]} 21. Bxf8 {[%clk 0:00:34]}  Rxf8 {[%clk 0:00:33]} 22. Qd1 {[%clk 0:00:19]}  Qb5 {[%clk 0:00:31]} 23. a4 {[%clk 0:00:16]}  Qxb2 {[%clk 0:00:30]} 24. a5 {[%clk 0:00:17]}  Bc5 {[%clk 0:00:29]} 25. Rb1 {[%clk 0:00:11]}  Qc3 {[%clk 0:00:27]} 26. Rxb7 {[%clk 0:00:06]}  Qxa5 {[%clk 0:00:27]} 27. h5 {[%clk 0:00:06]}  Ne5 {[%clk 0:00:26]} 28. h6 {[%clk 0:00:07]}  d3 {[%clk 0:00:20]} 29. hxg7 {[%clk 0:00:05]}  Kxg7 {[%clk 0:00:21]} 30. Qh5 {[%clk 0:00:04]}  Ng6 {[%clk 0:00:16]} 31. Kh2 {[%clk 0:00:03]}  d2 {[%clk 0:00:15]} 32. e5 {[%clk 0:00:02]}  Bd4 {[%clk 0:00:13]} 0-1


[Site "https://www.chess.com"]

[Event "Titled Tuesday Blitz November 15 Early 2022"]
[White "Besedes, Danilo"]
[Black "Parligras, Mircea-Emilian"]
[WhiteFideId "946796"]
[BlackFideId "1204297"]
[WhiteElo "2352"]
[BlackElo "2507"]
[Result "0-1"]
[Round "10"]
[TimeControl "180+1"]
[Date "2022.11.16"]
[WhiteClock "0:00:34"]
[BlackClock "0:00:44"]

1. Nf3 {[%clk 0:03:00]}  c5 {[%clk 0:02:59]} 2. e3 {[%clk 0:03:00]}  e6 {[%clk 0:02:59]} 3. d4 {[%clk 0:03:01]}  Nf6 {[%clk 0:02:58]} 4. Bd3 {[%clk 0:03:01]}  d5 {[%clk 0:02:57]} 5. O-O {[%clk 0:03:00]}  Nc6 {[%clk 0:02:53]} 6. b3 {[%clk 0:02:59]}  Bd6 {[%clk 0:02:49]} 7. Bb2 {[%clk 0:02:57]}  O-O {[%clk 0:02:49]} 8. a3 {[%clk 0:02:58]}  b6 {[%clk 0:02:50]} 9. Nbd2 {[%clk 0:02:55]}  Bb7 {[%clk 0:02:50]} 10. Qe2 {[%clk 0:02:54]}  Rc8 {[%clk 0:02:50]} 11. dxc5 {[%clk 0:02:43]}  bxc5 {[%clk 0:02:49]} 12. e4 {[%clk 0:02:43]}  Be7 {[%clk 0:02:38]} 13. Rad1 {[%clk 0:02:38]}  Qc7 {[%clk 0:02:30]} 14. Rfe1 {[%clk 0:02:35]}  Rcd8 {[%clk 0:02:22]} 15. e5 {[%clk 0:02:20]}  Nd7 {[%clk 0:02:21]} 16. Nf1 {[%clk 0:02:19]}  a5 {[%clk 0:02:08]} 17. Ng3 {[%clk 0:02:17]}  a4 {[%clk 0:02:08]} 18. h4 {[%clk 0:02:08]}  h6 {[%clk 0:02:05]} 19. h5 {[%clk 0:02:06]}  Qb6 {[%clk 0:02:03]} 20. Qe3 {[%clk 0:01:56]}  Na5 {[%clk 0:01:55]} 21. Qf4 {[%clk 0:01:43]}  axb3 {[%clk 0:01:53]} 22. cxb3 {[%clk 0:01:39]}  Nxb3 {[%clk 0:01:49]} 23. Qg4 {[%clk 0:01:33]}  c4 {[%clk 0:01:40]} 24. Bb1 {[%clk 0:01:34]}  Ndc5 {[%clk 0:01:35]} 25. Nd4 {[%clk 0:01:16]}  Na4 {[%clk 0:01:29]} 26. Bc1 {[%clk 0:00:53]}  Nxc1 {[%clk 0:01:26]} 27. Rxc1 {[%clk 0:00:54]}  Nc5 {[%clk 0:01:14]} 28. Rc3 {[%clk 0:00:52]}  Ne4 {[%clk 0:01:07]} 29. Nxe4 {[%clk 0:00:48]}  dxe4 {[%clk 0:01:07]} 30. Rg3 {[%clk 0:00:49]}  Bg5 {[%clk 0:01:07]} 31. Nc2 {[%clk 0:00:41]}  Rd2 {[%clk 0:00:56]} 32. Ne3 {[%clk 0:00:40]}  Qd4 {[%clk 0:00:50]} 33. a4 {[%clk 0:00:34]}  c3 {[%clk 0:00:49]} 34. Rc1 {[%clk 0:00:34]}  Rc8 {[%clk 0:00:46]} 35. a5 {[%clk 0:00:34]}  Qxe5 {[%clk 0:00:44]} 0-1


[Site "https://www.chess.com"]

[Event "Titled Tuesday Blitz November 15 Early 2022"]
[White "Biastoch, Bennet"]
[Black "Nielsen, Viktor Haarmark"]
[WhiteFideId "12939889"]
[BlackFideId "1444492"]
[WhiteElo "2221"]
[BlackElo "2345"]
[Result "1-0"]
[Round "10"]
[TimeControl "180+1"]
[Date "2022.11.16"]
[WhiteClock "0:00:46"]
[BlackClock "0:00:02"]

1. Nf3 {[%clk 0:03:00]}  Nf6 {[%clk 0:02:46]} 2. g3 {[%clk 0:03:00]}  g6 {[%clk 0:02:46]} 3. Bg2 {[%clk 0:03:00]}  Bg7 {[%clk 0:02:47]} 4. O-O {[%clk 0:03:00]}  O-O {[%clk 0:02:48]} 5. d4 {[%clk 0:03:01]}  d5 {[%clk 0:02:46]} 6. c3 {[%clk 0:03:01]}  b6 {[%clk 0:02:44]} 7. Bf4 {[%clk 0:02:50]}  Bb7 {[%clk 0:02:42]} 8. Nbd2 {[%clk 0:02:50]}  Nbd7 {[%clk 0:02:42]} 9. Ne5 {[%clk 0:02:50]}  c5 {[%clk 0:02:21]} 10. Ndf3 {[%clk 0:02:48]}  Ne4 {[%clk 0:02:18]} 11. a4 {[%clk 0:02:41]}  Nxe5 {[%clk 0:02:08]} 12. Bxe5 {[%clk 0:02:39]}  Bxe5 {[%clk 0:02:05]} 13. Nxe5 {[%clk 0:02:37]}  cxd4 {[%clk 0:01:51]} 14. cxd4 {[%clk 0:02:29]}  Qd6 {[%clk 0:01:38]} 15. Qd3 {[%clk 0:02:25]}  Rfc8 {[%clk 0:01:36]} 16. Rfc1 {[%clk 0:02:25]}  Qb4 {[%clk 0:01:31]} 17. b3 {[%clk 0:02:07]}  Rc3 {[%clk 0:01:15]} 18. Rxc3 {[%clk 0:02:05]}  Qxc3 {[%clk 0:01:16]} 19. Qxc3 {[%clk 0:01:49]}  Nxc3 {[%clk 0:01:17]} 20. e3 {[%clk 0:01:48]}  Rc8 {[%clk 0:01:14]} 21. Bf1 {[%clk 0:01:47]}  Ne4 {[%clk 0:01:10]} 22. a5 {[%clk 0:01:46]}  Nd2 {[%clk 0:00:45]} 23. axb6 {[%clk 0:01:45]}  axb6 {[%clk 0:00:46]} 24. Ra7 {[%clk 0:01:39]}  Rc1 {[%clk 0:00:14]} 25. Rxb7 {[%clk 0:01:37]}  Nxf1 {[%clk 0:00:14]} 26. Kg2 {[%clk 0:01:35]}  Kf8 {[%clk 0:00:13]} 27. Rb8+ {[%clk 0:01:34]}  Kg7 {[%clk 0:00:13]} 28. Rxb6 {[%clk 0:01:35]}  Nd2 {[%clk 0:00:12]} 29. Rb7 {[%clk 0:01:30]}  Kf8 {[%clk 0:00:12]} 30. b4 {[%clk 0:01:28]}  Rc2 {[%clk 0:00:10]} 31. Rb8+ {[%clk 0:01:21]}  Kg7 {[%clk 0:00:10]} 32. Rb7 {[%clk 0:01:15]}  Kf8 {[%clk 0:00:10]} 33. Nd7+ {[%clk 0:01:15]}  Kg7 {[%clk 0:00:10]} 34. Nc5 {[%clk 0:01:16]}  h5 {[%clk 0:00:05]} 35. Rxe7 {[%clk 0:01:14]}  Rb2 {[%clk 0:00:06]} 36. Rb7 {[%clk 0:01:12]}  Nc4 {[%clk 0:00:05]} 37. b5 {[%clk 0:01:12]}  Nxe3+ {[%clk 0:00:04]} 38. Kf3 {[%clk 0:01:12]}  Nc4 {[%clk 0:00:05]} 39. h4 {[%clk 0:01:08]}  Nd6 {[%clk 0:00:06]} 40. Rd7 {[%clk 0:01:06]}  Nxb5 {[%clk 0:00:06]} 41. Rxd5 {[%clk 0:01:05]}  Rd2 {[%clk 0:00:06]} 42. Ke3 {[%clk 0:00:58]}  Rb2 {[%clk 0:00:05]} 43. Nd3 {[%clk 0:00:58]}  Rb3 {[%clk 0:00:04]} 44. Rc5 {[%clk 0:00:57]}  Nc3 {[%clk 0:00:04]} 45. d5 {[%clk 0:00:54]}  Na4 {[%clk 0:00:05]} 46. Ra5 {[%clk 0:00:52]}  Nb2 {[%clk 0:00:04]} 47. Kd2 {[%clk 0:00:46]}  Rxd3+ {[%clk 0:00:05]} 48. Kc2 {[%clk 0:00:47]}  Nc4 {[%clk 0:00:05]} 49. Rc5 {[%clk 0:00:45]}  Rd4 {[%clk 0:00:02]} 50. Kc3 {[%clk 0:00:46]} 1-0


[Site "https://www.chess.com"]